bitfinex-derivatives/quotes_ETHF0:USTF0_20250926
["timestamp","ask_amount","ask_price","bid_price","bid_amount"]
[1758884144590,3.00509162,3895.9,3895.8,0.263]
[1758884144780,0.7771,3895.9,3895.8,0.263]
[1758884144986,3.00509162,3895.9,3895.8,0.4864]
[1758884146590,3.00509162,3895.9,3895.8,0.263]
[1758884149082,0.5652,3895.3,3895.2,41.26178]
[1758884149283,3.00509162,3895.3,3895.2,0.72478]
[1758884150290,0.3445,3894.9,3894.6,3.2078]
[1758884150600,3.00509162,3894.7,3894.6,3.66965]
[1758884150784,3.00509162,3894.7,3894.6,3.93265]
[1758884151187,3.46692162,3894.7,3894.6,3.4708]
[1758884151597,3.46692162,3894.7,3894.6,0.263]
[1758884152897,0.3445,3894.7,3894.6,6.59634162]
[1758884153099,0.1271,3895.0,3894.9,1.06531]
[1758884153299,0.1271,3895.0,3894.9,1.32831]
[1758884153599,0.4716,3895.0,3894.9,1.32831]
[1758884155317,0.6923,3895.0,3894.9,0.8665]
[1758884155601,0.6923,3895.0,3894.9,1.32831]
[1758884156001,1.23872138,3895.0,3894.9,1.16051]
[1758884160397,1.45062138,3895.0,3894.9,1.16051]
[1758884161101,1.23872138,3895.0,3894.9,1.16051]
[1758884161302,4.140413,3895.0,3894.9,0.6987]
[1758884161606,4.140413,3895.0,3894.9,1.16051]
[1758884161804,4.140413,3895.0,3894.9,0.72481]
[1758884162207,3.678613,3895.0,3894.9,0.94821]
[1758884162402,4.140413,3895.0,3894.9,0.94821]
[1758884162605,4.48926,3895.5,3895.3,0.4357]
[1758884162606,0.2207,3895.4,3895.3,0.4357]
[1758884162814,0.3478,3895.0,3894.9,0.68521]
[1758884162996,0.5597,3895.0,3894.9,1.16051]
[1758884163194,0.5597,3895.0,3894.8,3.2078]
[1758884163399,3.00509162,3894.9,3894.8,3.2078]
[1758884163606,3.46690162,3894.9,3894.8,3.2078]
[1758884163808,3.46690162,3894.9,3894.8,3.4708]
[1758884164605,3.00509162,3894.9,3894.8,3.93262]
[1758884164801,3.46690162,3894.9,3894.8,3.4708]
[1758884165602,3.46690162,3894.9,3894.8,3.93262]
[1758884166210,3.46690162,3894.9,3894.8,3.4708]
[1758884167209,0.7602,3894.1,3894.0,44.0078]
[1758884167402,2.98819162,3894.1,3894.0,3.4708]
[1758884170509,2.98819162,3894.1,3894.0,0.263]
[1758884170717,3.45009162,3894.1,3894.0,0.263]
[1758884171013,2.98819162,3894.1,3894.0,0.72492]
[1758884171606,3.45009162,3894.1,3894.0,0.72492]
[1758884172208,0.7602,3894.1,3894.0,0.94912]
[1758884172413,0.7602,3894.1,3894.0,1.16642]
[1758884174314,0.7602,3894.1,3894.0,4.37422]
[1758884175309,0.543,3894.1,3894.0,4.37422]
[1758884175515,0.543,3894.1,3894.0,4.54182]
[1758884176405,0.543,3894.1,3894.0,4.37422]
[1758884176812,0.7569,3894.1,3894.0,4.37422]
[1758884178317,0.543,3894.1,3894.0,4.54182]
[1758884178817,0.328,3894.1,3894.0,4.54182]
[1758884179211,0.543,3894.1,3894.0,4.54182]
[1758884179412,0.543,3894.1,3894.0,4.37422]
[1758884181018,1.08456671,3894.1,3894.0,4.37422]
[1758884181315,0.543,3894.1,3894.0,4.37422]
[1758884182317,0.7569,3894.1,3894.0,0.90342]
[1758884182518,0.7569,3894.1,3894.0,0.72492]
[1758884182519,3.92092186,3894.1,3894.0,0.72492]
[1758884182919,4.38282186,3894.1,3894.0,0.72492]
[1758884184321,4.58362282,3894.1,3894.0,0.72492]
[1758884184519,4.38282186,3894.1,3894.0,0.72492]
[1758884185021,3.92092186,3894.1,3894.0,0.72492]
[1758884185525,1.29812192,3894.1,3894.0,0.72492]
[1758884185826,1.29805848,3894.1,3894.0,0.94912]
[1758884186213,4.38275842,3894.1,3894.0,0.263]
[1758884186513,4.38275842,3894.1,3894.0,0.72491]
[1758884186715,4.38275842,3894.1,3894.0,0.263]
[1758884186922,4.38275842,3894.1,3894.0,0.72491]
[1758884187419,3.92085842,3894.1,3894.0,0.72491]
[1758884193217,1.29805848,3894.1,3894.0,1.16641]
[1758884198927,1.29805848,3894.1,3894.0,0.94911]
[1758884205828,1.29805848,3894.1,3894.0,0.72491]
[1758884206528,1.75995848,3894.1,3894.0,0.72491]
[1758884206823,1.29805848,3894.1,3894.0,0.72491]
[1758884207528,1.75995848,3894.1,3894.0,0.72491]
[1758884207732,1.29805848,3894.1,3894.0,0.72491]
[1758884208632,1.75995848,3894.1,3894.0,0.72491]
[1758884209323,1.29805848,3894.1,3894.0,0.72491]
[1758884210532,1.75995848,3894.1,3894.0,0.72492]
[1758884210827,1.75995848,3894.1,3894.0,0.263]
[1758884212030,1.75995848,3894.1,3894.0,0.72492]
[1758884212227,1.37793,3894.0,3893.9,0.72493]
[1758884212420,1.91908848,3894.0,3893.9,0.72493]
[1758884213225,1.91908848,3894.0,3893.9,0.263]
[1758884213525,1.91908848,3894.0,3893.7,0.46194]
[1758884213526,1.25114,3893.8,3893.7,0.46194]
[1758884213832,4.41509842,3893.8,3893.7,0.46194]
[1758884214334,1.37797,3893.5,3893.4,0.72499]
[1758884214528,0.87325848,3893.5,3893.4,3.95218994]
[1758884214735,0.87325848,3893.5,3893.4,1.32939]
[1758884215232,1.00005848,3893.5,3893.4,1.32939]
[1758884216336,1.23225848,3893.5,3893.4,1.32939]
[1758884218530,1.45715848,3893.5,3893.4,1.16169]
[1758884220127,1.45715848,3893.5,3893.4,0.93819]
[1758884220334,1.45715848,3893.5,3893.4,0.72499]
[1758884221037,1.45715848,3893.5,3893.4,1.16169]
[1758884221230,1.23225848,3893.5,3893.4,1.32939]
[1758884222139,0.87325848,3893.5,3893.4,1.32939]
[1758884222530,0.54115848,3893.5,3893.4,1.32939]
[1758884222735,0.3321,3893.8,3893.7,1.06635]
[1758884222940,0.8746383,3893.8,3893.7,1.32935]
[1758884224932,1.1068383,3893.8,3893.7,1.32935]
[1758884225431,1.1068383,3893.8,3893.7,1.16165]
[1758884225941,1.1068383,3893.8,3893.7,1.32945]
[1758884226430,1.1068383,3893.8,3893.7,1.16165]
[1758884227036,1.3183383,3893.8,3893.7,1.16165]
[1758884229938,1.3183383,3893.8,3893.7,1.32945]
[1758884230327,1.3183383,3893.8,3893.7,1.16165]
[1758884230735,0.5425383,3893.8,3893.7,1.32945]
[1758884231038,0.3202,3893.9,3893.8,0.90144]
[1758884231235,0.8631715,3893.9,3893.8,1.06924]
[1758884231933,1.0834715,3893.9,3893.8,1.06924]
[1758884233142,1.0834715,3893.9,3893.8,0.90144]
[1758884233543,1.3084715,3893.9,3893.8,0.90144]
[1758884234037,1.3084715,3893.9,3893.8,1.06924]
[1758884234240,1.0834715,3893.9,3893.8,1.06924]
[1758884234438,0.8631715,3893.9,3893.8,1.06924]
[1758884234941,0.5429715,3893.9,3893.8,3.69203994]
[1758884235243,0.7655,3894.2,3894.1,0.672]
[1758884235444,1.30860133,3894.2,3894.1,0.935]
[1758884236440,1.30860133,3894.2,3894.1,41.735]
[1758884238439,1.30860133,3894.2,3894.1,41.472]
[1758884238640,1.30860133,3894.2,3894.1,41.735]
[1758884238947,3.93140127,3894.2,3894.1,0.4619]
[1758884239249,3.93140127,3894.2,3894.1,0.7249]
[1758884239845,4.39329127,3894.2,3894.1,0.7249]
[1758884240043,3.93140127,3894.2,3894.1,0.7249]
[1758884240437,1.30860133,3894.2,3894.1,0.7249]
[1758884241542,1.30860133,3894.2,3894.1,0.935]
[1758884241746,1.77049133,3894.2,3894.1,0.263]
[1758884241945,1.77049133,3894.2,3894.1,0.7249]
[1758884242247,1.30860133,3894.2,3894.1,0.7249]
[1758884242645,3.5373141,3894.2,3894.1,0.7249]
[1758884248957,3.9992041,3894.2,3894.1,0.7249]
[1758884249349,0.7655,3893.7,3893.6,2.94486]
[1758884249554,3.5373141,3893.7,3893.6,0.72496]
[1758884251359,0.3202,3892.9,3892.8,4.27716]
[1758884251656,0.3202,3892.9,3892.8,6.76887277]
[1758884254159,0.572,3893.5,3893.4,0.2101]
[1758884254361,1.11485668,3893.5,3893.4,0.93509]
[1758884254558,1.43505668,3893.5,3893.4,0.93509]
[1758884255360,1.43505668,3893.5,3893.4,0.72499]
[1758884259365,1.89702668,3893.5,3893.4,0.72499]
[1758884260070,1.43505668,3893.5,3893.4,0.72499]
[1758884260672,1.89702668,3893.5,3893.4,0.72499]
[1758884261074,1.89702668,3893.5,3893.4,0.263]
[1758884262177,1.89702668,3893.5,3893.4,0.72499]
[1758884262472,1.43505668,3893.5,3893.4,0.94149]
[1758884262666,1.43505668,3893.5,3893.4,1.15339]
[1758884263163,1.89702668,3893.5,3893.4,0.94149]
[1758884263976,1.89702668,3893.5,3893.4,0.72499]
[1758884264768,1.43505668,3893.5,3893.4,0.72499]
[1758884264974,1.43505668,3893.5,3893.4,0.94149]
[1758884265165,1.43505668,3893.5,3893.4,1.15339]
[1758884265968,1.89702668,3893.5,3893.4,0.263]
[1758884266272,1.89702668,3893.5,3893.4,0.72499]
[1758884270078,1.43505668,3893.5,3893.4,0.72499]
[1758884270263,1.89702668,3893.5,3893.4,0.72499]
[1758884271072,0.7844,3892.9,3892.8,3.88636]
[1758884271271,0.7844,3892.9,3892.8,4.14836]
[1758884271778,0.5544,3892.9,3892.8,4.52676]
[1758884272276,0.7844,3892.9,3892.8,4.36026]
[1758884272464,0.7844,3892.9,3892.8,3.93186]
[1758884272664,0.7844,3892.9,3892.8,4.14836]
[1758884272971,0.7844,3892.9,3892.8,4.36026]
[1758884277576,3.55567922,3892.9,3892.8,4.14836]
[1758884279776,3.55567922,3892.9,3892.8,0.262]
[1758884279777,4.21781072,3892.9,3892.8,0.262]
[1758884280278,0.7844,3892.6,3892.5,0.72409]
[1758884280477,3.55567922,3892.6,3892.5,0.72409]
[1758884284182,4.01775922,3892.6,3892.5,0.72409]
[1758884284685,3.55567922,3892.6,3892.5,0.72409]
[1758884284984,3.55567922,3892.6,3892.5,1.15129]
[1758884285673,3.55567922,3892.6,3892.5,0.94059]
[1758884285880,4.01775922,3892.6,3892.5,0.72409]
[1758884286081,3.55567922,3892.6,3892.5,0.72409]
[1758884286281,4.01775922,3892.6,3892.5,0.72409]
[1758884286983,3.55567922,3892.6,3892.5,0.72409]
[1758884287383,3.55567922,3892.6,3892.5,0.94459]
[1758884287687,3.55567922,3892.6,3892.5,1.15529]
[1758884288687,3.55567922,3892.6,3892.5,0.94459]
[1758884290683,4.01775922,3892.6,3892.5,0.72409]
[1758884291686,3.55567922,3892.6,3892.5,0.72409]
[1758884292688,3.55567922,3892.6,3892.5,0.93659]
[1758884293892,4.01775922,3892.6,3892.5,0.93659]
[1758884294080,4.01775922,3892.6,3892.5,0.262]
[1758884294286,4.01775922,3892.6,3892.5,0.7241]
[1758884296486,1.24335,3892.0,3891.5,4.36333]
[1758884296690,0.9145,3892.0,3891.9,0.67467]
[1758884296890,3.68669102,3892.0,3891.9,0.46217]
[1758884297084,3.68669102,3892.0,3891.9,0.72417]
[1758884297892,3.68669102,3892.0,3891.9,0.93667]
[1758884298592,3.68669102,3892.0,3891.9,0.72417]
[1758884298893,1.45797825,3892.0,3891.9,1.16257]
[1758884300588,0.9145,3892.0,3891.9,1.16257]
[1758884300790,1.37666,3892.0,3891.9,0.72417]
[1758884301093,1.45841097,3892.0,3891.9,0.72417]
[1758884301690,0.9145,3892.0,3891.9,0.72417]
[1758884301881,1.45841097,3892.0,3891.9,0.72417]
[1758884302482,1.45841097,3892.0,3891.9,0.93667]
[1758884303797,1.92057097,3892.0,3891.9,0.72417]
[1758884304895,1.45841097,3892.0,3891.9,0.72417]
[1758884308195,0.7812,3891.6,3891.5,0.46221]
[1758884308402,1.32511097,3891.6,3891.5,0.72421]
[1758884308599,1.78731097,3891.6,3891.5,0.72421]
[1758884308801,1.32511097,3891.6,3891.5,1.16261]
[1758884308988,1.32511097,3891.6,3891.5,0.72421]
[1758884309190,1.78731097,3891.6,3891.5,0.262]
[1758884309390,1.32511097,3891.6,3891.5,0.72421]
[1758884309596,1.32511097,3891.6,3891.5,0.93671]
[1758884310102,1.32523648,3891.6,3891.5,0.72421]
[1758884311198,1.78743648,3891.6,3891.5,0.72421]
[1758884311494,1.78743648,3891.6,3891.5,0.262]
[1758884312604,0.5481,3890.9,3890.8,41.2623]
[1758884312905,0.5481,3890.9,3890.8,41.5243]
[1758884312906,3.71808374,3890.9,3890.8,41.5243]
[1758884313399,3.71808374,3890.9,3890.8,0.9368]
[1758884313400,3.40734323,3890.9,3890.8,0.9368]
[1758884314203,0.5481,3890.9,3890.8,1.3308]
[1758884315200,0.7812,3890.9,3890.8,1.1627]
[1758884315801,0.7812,3890.9,3890.8,0.9368]
[1758884316708,0.7812,3890.9,3890.8,1.1627]
[1758884318108,3.40734323,3890.9,3890.8,0.7243]
[1758884319713,0.7812,3890.9,3890.8,0.7243]
[1758884321208,0.4623,3890.8,3890.7,0.72431]
[1758884321505,1.238,3890.8,3890.7,0.262]
[1758884321705,1.99036652,3890.8,3890.7,0.262]
[1758884322606,0.3381,3890.4,3890.3,3.2078]
[1758884322812,4.1168,3891.0,3890.9,0.89809]
[1758884323110,5.12410379,3891.0,3890.9,0.89809]
[1758884324006,4.66183379,3891.0,3890.9,0.89809]
[1758884325800,5.12410379,3891.0,3890.9,0.89809]
[1758884326001,4.66183379,3891.0,3890.9,0.89809]
[1758884326818,5.12410379,3891.0,3890.9,0.89809]
[1758884327406,0.68548,3890.9,3890.8,0.262]
[1758884327612,4.40915702,3890.9,3890.8,0.7243]
[1758884327815,3.94687702,3890.9,3890.8,0.7243]
[1758884328408,1.32073379,3890.9,3890.8,0.7243]
[1758884328610,1.78301379,3890.9,3890.8,0.7243]
[1758884329009,1.32073379,3890.9,3890.8,0.7243]
[1758884329213,1.32073379,3890.9,3890.8,0.4623]
[1758884329510,1.32073379,3890.9,3890.8,1.1601]
[1758884330010,1.78301379,3890.9,3890.8,1.1601]
[1758884330206,1.78301379,3890.9,3890.8,0.9497]
[1758884330607,1.78301379,3890.9,3890.8,0.7243]
[1758884330802,1.32073379,3890.9,3890.8,0.7243]
[1758884331624,1.78301379,3890.9,3890.8,0.7243]
[1758884332310,1.78301379,3890.9,3890.8,0.262]
[1758884332516,1.78301379,3890.9,3890.8,0.7243]
[1758884332913,1.32073379,3890.9,3890.8,0.7243]
[1758884333114,1.78302379,3890.9,3890.8,0.7243]
[1758884333714,1.78302379,3890.9,3890.8,0.262]
[1758884334016,1.78302379,3890.9,3890.8,0.7243]
[1758884334718,1.78302379,3890.9,3890.8,0.262]
[1758884338222,1.78302379,3890.9,3890.0,1.15597]
[1758884338223,0.89991,3890.7,3890.6,0.46232]
[1758884338422,4.40918702,3890.7,3890.6,0.46232]
[1758884338922,0.46234,3890.4,3890.3,41.52436]
[1758884339223,1.34547379,3890.4,3890.3,41.52436]
[1758884339424,1.78307379,3890.4,3890.3,0.72436]
[1758884340018,1.78307379,3890.4,3890.2,0.46237]
[1758884340019,1.23807,3890.3,3890.2,0.46237]
[1758884340218,1.32073379,3890.3,3890.2,0.72437]
[1758884340621,1.78309379,3890.3,3890.2,0.72437]
[1758884340818,1.32073379,3890.3,3890.2,0.94977]
[1758884341020,1.32073379,3890.3,3890.2,1.16017]
[1758884341217,0.98263379,3890.3,3889.9,3.2078]
[1758884341526,3.19884323,3890.0,3889.9,0.8982]
[1758884341822,4.08197702,3890.0,3889.9,0.8982]
[1758884342029,4.54436702,3890.0,3889.9,0.4624]
[1758884342328,0.7757,3889.6,3889.5,3.9056]
[1758884342525,0.5613,3889.6,3889.5,4.36805]
[1758884342829,0.5613,3889.6,3889.5,45.33635]
[1758884343029,0.3381,3889.6,3889.5,45.33635]
[1758884343718,0.3381,3889.6,3889.5,44.73225]
[1758884344333,0.3381,3889.6,3889.5,44.90055]
[1758884345129,0.3381,3889.6,3889.5,44.73225]
[1758884345330,0.3381,3889.6,3889.5,44.90055]
[1758884346636,0.3381,3889.6,3889.5,44.73225]
[1758884346837,0.3381,3889.6,3889.5,44.90055]
[1758884348131,0.3381,3889.6,3889.5,44.73225]
[1758884349237,0.3381,3889.6,3889.5,44.90075]
[1758884349940,0.3381,3889.6,3889.5,44.73225]
[1758884351044,0.80054,3889.6,3889.5,44.73225]
[1758884351340,0.7929,3889.6,3889.5,4.14925]
[1758884352133,0.9229,3889.5,3889.1,44.0078]
[1758884352334,1.24889,3889.2,3889.1,40.8]
[1758884352542,1.79448092,3889.2,3889.1,41.062]
[1758884352937,2.00299763,3889.2,3889.1,41.062]
[1758884353237,2.00299763,3889.2,3889.1,0.262]
[1758884354243,2.00299763,3889.2,3889.1,0.7245]
[1758884355145,2.00299763,3889.2,3889.1,0.262]
[1758884355748,1.24892,3888.9,3888.8,0.46253]
[1758884356044,1.24892,3888.9,3888.8,0.262]
[1758884356245,1.34066999,3888.9,3888.8,0.262]
[1758884356844,1.88516141,3888.9,3888.8,0.262]
[1758884357040,1.8852002,3888.9,3888.8,0.262]
[1758884357348,1.34066999,3888.9,3888.8,1.15253]
[1758884357544,0.09174999,3888.9,3888.8,1.32103]
[1758884357737,0.4681,3889.5,3889.4,0.89046]
[1758884357941,0.42335343,3889.5,3889.4,1.32096]
[1758884359442,0.55985343,3889.5,3889.4,1.32096]
[1758884360149,0.78385343,3889.5,3889.4,1.32096]
[1758884362945,0.55985343,3889.5,3889.4,1.32096]
[1758884363548,0.78385343,3889.5,3889.4,1.32096]
[1758884363745,0.55985343,3889.5,3889.4,1.32096]
[1758884364150,1.01465343,3889.5,3889.4,1.15246]
[1758884364650,3.24875326,3889.5,3889.4,1.15246]
[1758884365438,3.79318073,3889.5,3889.4,1.15246]
[1758884365645,3.24875326,3889.5,3889.4,1.15246]
[1758884366343,3.79327624,3889.5,3889.4,1.15246]
[1758884366539,4.25572624,3889.5,3889.4,0.67946]
[1758884366747,4.25572624,3889.5,3889.4,0.72446]
[1758884366947,4.25572624,3889.5,3889.4,0.262]
[1758884367750,3.79327624,3889.5,3889.4,0.72446]
[1758884367940,1.55917641,3889.5,3889.4,0.94146]
[1758884368445,1.55917641,3889.5,3889.4,0.72446]
[1758884368645,2.02162641,3889.5,3889.4,0.72446]
[1758884371055,2.02162641,3889.5,3889.4,0.262]
[1758884371750,0.4625,3889.1,3889.0,0.72451]
[1758884372056,4.11927624,3889.1,3889.0,0.72451]
[1758884374849,3.43277624,3889.1,3888.8,0.46252]
[1758884375055,3.02049983,3888.9,3888.8,0.46252]
[1758884375251,3.65677624,3888.9,3888.8,0.94152]
[1758884378954,3.65677624,3888.9,3888.3,1.32499]
[1758884378955,1.47276,3888.8,3888.3,3.67039]
[1758884379160,3.45077983,3888.4,3888.2,0.262]
[1758884379355,4.08734308,3888.3,3888.2,0.7246]
[1758884379557,3.62475308,3888.3,3888.2,0.7246]
[1758884380751,1.16915325,3888.3,3888.2,1.1763]
[1758884380956,3.40325308,3888.3,3888.2,1.3449]
[1758884381457,3.62475308,3888.3,3888.2,1.1763]
[1758884382267,1.39065325,3888.3,3888.2,1.1763]
[1758884382466,3.62475308,3888.3,3888.2,0.7246]
[1758884382959,4.08734308,3888.3,3888.2,0.7246]
[1758884383359,4.08734308,3888.3,3888.2,0.262]
[1758884383659,4.08734308,3888.3,3888.2,0.72461]
[1758884384764,3.62475308,3888.3,3888.2,0.72461]
[1758884385664,4.08734308,3888.3,3888.2,0.262]
[1758884386057,3.62475308,3888.3,3888.2,0.7246]
[1758884386263,4.08734308,3888.3,3888.2,0.262]
[1758884386563,4.08734308,3888.3,3887.9,0.02572116]
[1758884386564,1.35083,3888.0,3887.9,0.02572116]
[1758884386768,4.22148308,3888.0,3887.9,0.28772116]
[1758884386958,4.22148308,3888.0,3887.9,0.75036116]
[1758884387158,1.52475325,3888.0,3887.9,0.02572116]
[1758884387360,3.75885308,3888.0,3887.9,0.97006116]
[1758884388065,3.75885308,3888.0,3887.9,0.75036116]
[1758884388963,1.52475325,3888.0,3887.9,1.20206116]
[1758884389156,3.2143301,3888.0,3887.9,1.20206116]
[1758884389463,3.2143301,3888.0,3887.9,4.40986116]
[1758884389665,0.09203027,3888.0,3887.9,4.57846116]
[1758884390260,0.09203027,3888.0,3887.9,45.37846116]
[1758884390562,0.40843027,3888.0,3887.9,45.37846116]
[1758884390968,0.09203027,3888.0,3887.9,45.37846116]
[1758884392365,0.09203027,3888.0,3887.9,50.37846116]
[1758884392965,0.09203027,3888.0,3887.9,50.11646116]
[1758884393170,0.09203027,3888.0,3887.9,90.49446116]
[1758884393571,0.0257,3888.1,3888.0,0.63123]
[1758884393770,0.0257,3888.1,3888.0,1.08293]
[1758884394070,0.11665245,3888.1,3888.0,3.31702983]
[1758884394273,0.3164,3888.9,3888.8,0.46254]
[1758884394473,0.86476274,3888.9,3888.8,1.34484]
[1758884394670,1.30246274,3888.9,3888.8,1.17624]
[1758884394972,0.7541,3888.9,3888.8,1.17624]
[1758884395274,1.30253959,3888.9,3888.8,1.17624]
[1758884395773,0.7541,3888.9,3888.8,41.97624]
[1758884396073,0.4377,3889.5,3889.4,1.24326]
[1758884396260,0.3503,3890.0,3889.9,0.4624]
[1758884396464,0.98589537,3890.0,3889.9,1.5052]
[1758884396967,1.11999537,3890.0,3889.9,0.7244]
[1758884397968,1.43639537,3890.0,3889.9,0.7244]
[1758884399975,6.43639537,3890.0,3889.9,0.7244]
[1758884400769,6.89878537,3890.0,3889.9,0.262]
[1758884400975,0.7541,3889.8,3889.7,0.46242]
[1758884401276,3.5363952,3889.8,3889.7,0.72442]
[1758884401676,3.5363952,3889.8,3889.7,1.27322]
[1758884401877,3.5363952,3889.8,3889.7,1.50522]
[1758884402175,0.2162,3889.8,3889.7,1.50522]
[1758884402370,2.98819983,3889.8,3889.7,1.50522]
[1758884402568,2.98819983,3889.8,3889.7,1.24322]
[1758884402770,2.98819983,3889.8,3889.7,1.50522]
[1758884404184,2.98819983,3889.8,3889.7,0.46242]
[1758884404375,3.53562047,3889.8,3889.7,0.72442]
[1758884404875,0.7541,3889.4,3889.3,0.46248]
[1758884405080,2.98819983,3889.4,3889.3,0.72448]
[1758884405287,3.53571543,3889.4,3889.3,0.72448]
[1758884405677,2.98819983,3889.4,3889.3,0.72448]
[1758884405985,3.45065983,3889.4,3889.3,0.72448]
[1758884406183,4.08845834,3889.4,3889.3,0.72448]
[1758884406380,4.08845834,3889.4,3889.3,0.262]
[1758884406974,2.87189834,3889.4,3888.7,0.3476]
[1758884407180,2.77939983,3888.8,3888.7,41.49415]
[1758884407479,2.86968347,3888.8,3888.7,41.75615]
[1758884407680,3.08718347,3888.8,3888.7,0.95615]
[1758884407878,0.85308364,3888.8,3888.7,1.52825]
[1758884408682,0.09028364,3888.8,3888.7,1.52825]
[1758884408880,3.2078,3889.1,3889.0,0.9081]
[1758884408881,3.4224,3889.1,3889.0,0.9081]
[1758884409081,4.38252722,3889.1,3889.0,1.63261]
[1758884409284,4.60392722,3889.1,3889.0,1.63261]
[1758884410086,6.83802705,3889.1,3889.0,1.63261]
[1758884410391,6.83802705,3889.1,3889.0,1.49391]
[1758884410682,7.30052705,3889.1,3889.0,0.262]
[1758884410993,1.22082,3888.9,3888.8,0.46254]
[1758884411183,1.39612722,3888.9,3888.8,0.95024]
[1758884411483,1.85864722,3888.9,3888.8,0.4877]
[1758884411680,0.7583,3888.6,3888.1,0.3162]
[1758884411884,0.7583,3888.6,3887.9,0.48836116]
[1758884411885,0.8916,3888.0,3887.9,0.48836116]
[1758884412185,0.98188695,3888.0,3887.9,0.97606116]
[1758884412381,0.98188695,3888.0,3887.9,1.29226116]
[1758884412688,0.98188695,3888.0,3887.9,0.97606116]
[1758884412881,0.98188695,3888.0,3887.9,0.75036116]
[1758884413183,1.44451695,3888.0,3887.9,0.75036116]
[1758884413483,1.44451695,3888.0,3887.9,0.28772116]
[1758884413782,0.98188695,3888.0,3887.9,0.48836116]
[1758884413979,1.44451695,3888.0,3887.9,0.02572116]
[1758884414180,0.436,3887.6,3887.4,0.46269]
[1758884414380,0.98188695,3887.5,3887.4,0.46269]
[1758884414592,0.98188695,3887.5,3887.2,0.46271]
[1758884414890,2.99239983,3887.3,3887.2,0.68841]
[1758884415075,0.84858695,3887.3,3887.2,1.23211]
[1758884415278,0.84858695,3887.3,3887.2,1.49411]
[1758884416294,0.7583,3887.3,3887.2,0.7694]
[1758884416484,0.7583,3887.3,3887.2,0.7152]
[1758884416785,0.5369,3887.3,3887.2,1.0314]
[1758884417196,0.7583,3887.6,3887.5,0.91589]
[1758884417490,0.7583,3887.6,3887.5,1.49409]
[1758884417988,0.2146,3887.9,3887.7,0.3162]
[1758884418180,0.2146,3887.9,3887.8,1.0314]
[1758884418384,3.2078,3888.3,3887.8,2.18803]
[1758884418592,0.5369,3888.2,3888.1,1.23202]
[1758884418884,3.2078,3888.3,3888.2,1.23201]
[1758884419779,3.9661,3888.8,3888.7,0.91575]
[1758884419980,4.51323339,3888.8,3888.7,1.49395]
[1758884422489,4.51323339,3888.8,3888.7,0.7694]
[1758884422687,4.19093339,3888.8,3888.5,40.8]
[1758884422891,0.7583,3888.6,3888.5,40.8]
[1758884423195,1.30543339,3888.6,3888.5,41.52457]
[1758884423681,0.7583,3888.6,3888.5,41.52457]
[1758884423886,0.7583,3888.6,3888.5,0.95027]
[1758884424488,0.7583,3888.6,3888.5,1.49397]
[1758884424790,0.2146,3889.0,3888.9,1.23192]
[1758884424992,3.2078,3889.2,3889.1,0.4625]
[1758884425187,3.2078,3889.2,3889.1,1.4939]
[1758884425397,3.7447,3889.2,3889.1,42.2939]
[1758884425993,0.2146,3889.2,3889.1,42.2939]
[1758884426591,0.7583,3889.5,3889.4,0.91566]
[1758884426894,0.7583,3889.5,3889.4,1.49386]
[1758884427883,0.3223,3889.9,3889.8,1.23182]
[1758884428084,0.2403,3890.0,3889.9,1.2318]
[1758884428591,0.2403,3890.0,3889.9,0.9156]
[1758884428592,0.784,3890.0,3889.9,0.9156]
[1758884428794,1.9267003,3890.0,3889.9,0.262]
[1758884428994,0.7583,3889.8,3889.7,0.46243]
[1758884429191,1.00612,3889.8,3889.7,0.262]
[1758884429398,1.76782361,3889.8,3889.7,0.262]
[1758884429902,6.76782361,3889.8,3889.7,0.262]
[1758884430784,6.30540361,3889.8,3889.7,0.262]
[1758884430983,0.3223,3889.2,3888.8,1.15635]
[1758884431200,0.7583,3889.2,3889.1,1.0044]
[1758884431495,0.7583,3889.2,3889.1,1.2319]
[1758884433300,0.7583,3889.2,3889.1,1.4939]
[1758884433896,0.2146,3889.2,3889.1,1.4939]
[1758884434294,4.0994,3889.5,3889.4,0.68816]
[1758884434502,4.64689246,3889.5,3889.4,0.95016]
[1758884434694,4.64689246,3889.5,3889.4,1.49386]
[1758884435201,5.10935246,3889.5,3889.4,0.46246]
[1758884435502,5.10935246,3889.5,3889.4,0.72446]
[1758884436001,5.10935246,3889.5,3889.4,0.46246]
[1758884436501,5.10935246,3889.5,3889.4,0.72346]
[1758884437501,0.7583,3889.2,3889.1,0.5419]
[1758884437801,1.30578451,3889.2,3889.1,0.9492]
[1758884438396,1.76827451,3889.2,3889.1,0.9492]
[1758884438595,1.22533,3888.9,3888.8,0.68924]
[1758884438802,1.31032043,3888.9,3888.8,0.95024]
[1758884439704,1.31032043,3888.9,3888.8,1.51254]
[1758884442502,0.98332043,3888.9,3888.8,1.51254]
[1758884443007,0.54752043,3888.9,3888.8,1.51254]
[1758884443507,0.75792043,3888.9,3888.8,1.51254]
[1758884443704,1.08492043,3888.9,3888.8,1.51254]
[1758884444203,1.77285043,3888.9,3888.8,1.25154]
[1758884444403,1.31032043,3888.9,3888.8,1.51254]
[1758884445597,0.54752043,3888.9,3888.8,1.51254]
[1758884445807,0.2104,3889.1,3889.0,0.92041]
[1758884446003,4.5188872,3889.1,3889.0,1.51251]
[1758884447104,0.7586872,3889.1,3889.0,1.64841]
[1758884447300,1.0856872,3889.1,3889.0,1.64841]
[1758884447709,1.3110872,3889.1,3889.0,1.64841]
[1758884448306,1.3110872,3889.1,3889.0,1.51251]
[1758884449106,1.3110872,3889.1,3889.0,1.64841]
[1758884449304,0.5482872,3889.1,3889.0,1.64841]
[1758884449505,0.75957358,3889.2,3889.1,1.2515]
[1758884450207,1.08657358,3889.2,3889.1,1.2515]
[1758884450706,0.75957358,3889.2,3889.1,1.2515]
[1758884451308,0.54917358,3889.2,3889.1,1.2515]
[1758884452417,0.54917358,3889.2,3889.1,6.2515]
[1758884452605,0.2104,3890.2,3890.1,1.25139]